bitfinex/quotes_SOLUSD_20250602
["timestamp","ask_amount","ask_price","bid_price","bid_amount"]
[1748904321074,18.34648514,156.25,156.23,6.4008193]
[1748904323771,18.34648514,156.28,156.24,18.64964886]
[1748904323979,146.4,156.29,156.24,36.996134]
[1748904324287,164.74648514,156.29,156.24,36.996134]
[1748904325188,146.4,156.29,156.25,40.74648514]
[1748904325378,146.4,156.29,156.26,18.64964886]
[1748904326592,146.4,156.29,156.28,18.64964886]
[1748904326971,146.4,156.29,156.27,24.74566604]
[1748904326972,164.74648514,156.29,156.27,6.3991809]
[1748904327469,146.4,156.29,156.27,6.3991809]
[1748904327892,146.4,156.29,156.28,18.64964886]
[1748904328672,146.4,156.29,156.28,6.39877143]
[1748904331277,18.34648514,156.31,156.28,18.64964886]
[1748904331884,186.78,156.33,156.28,18.64964886]
[1748904332211,18.34648514,156.31,156.28,18.64964886]
[1748904332912,18.34648514,156.3,156.27,22.39713316]
[1748904333128,18.34648514,156.28,156.27,6.3991809]
[1748904333291,18.34648514,156.28,156.25,6.4]
[1748904333474,18.34648514,156.26,156.25,6.4]
[1748904333808,18.34648514,156.26,156.23,6.4008193]
[1748904334099,186.78,156.27,156.23,6.4008193]
[1748904334282,18.34648514,156.24,156.23,6.4008193]
[1748904334474,186.78,156.27,156.23,22.40286756]
[1748904334672,205.12648514,156.27,156.23,22.40286756]
[1748904334892,18.34648514,156.25,156.23,22.40286756]
[1748904336107,18.34648514,156.26,156.23,22.40286756]
[1748904336805,18.34648514,156.25,156.23,22.40286756]
[1748904339494,18.34648514,156.26,156.23,22.40286756]
[1748904340499,18.34648514,156.25,156.23,22.40286756]
[1748904341085,18.34648514,156.26,156.23,22.40286756]
[1748904342801,164.74648514,156.27,156.24,18.64964886]
[1748904343577,18.34648514,156.26,156.24,18.64964886]
[1748904345406,164.74648514,156.27,156.25,6.4]
[1748904346308,146.4,156.27,156.25,6.4]
[1748904346500,164.74648514,156.27,156.25,6.4]
[1748904347625,18.34648514,156.26,156.25,6.4]
[1748904348411,18.34648514,156.26,156.23,6.4008193]
[1748904348597,18.34648514,156.25,156.23,6.4008193]
[1748904348792,146.4,156.27,156.23,6.4008193]
[1748904349112,18.34648514,156.25,156.23,6.4008193]
[1748904350128,146.4,156.27,156.24,18.64964886]
[1748904350129,18.34648514,156.26,156.24,18.64964886]
[1748904350611,18.34648514,156.26,156.25,6.4]
[1748904352806,18.34648514,156.26,156.22,22.40424784]
[1748904353114,146.4,156.27,156.22,22.40424784]
[1748904353297,18.34648514,156.26,156.22,22.40424784]
[1748904359419,18.34648514,156.23,156.22,6.40122903]
[1748904359924,146.4,156.25,156.22,6.40122903]
[1748904360127,18.34648514,156.24,156.22,6.40122903]
[1748904360510,164.74648514,156.25,156.22,22.40430161]
[1748904361609,146.4,156.25,156.23,18.64964886]
[1748904363522,146.4,156.25,156.24,25.05005848]
[1748904363739,205.06648514,156.3,156.25,18.64964886]
[1748904363905,164.74648514,156.3,156.25,36.996134]
[1748904364402,146.4,156.3,156.25,36.996134]
[1748904365113,164.74648514,156.3,156.25,36.996134]
[1748904365715,164.74648514,156.3,156.27,18.64964886]
[1748904366829,18.34648514,156.32,156.27,36.996134]
[1748904367415,58.39294635,156.33,156.27,36.996134]
[1748904367611,76.73943149,156.33,156.29,18.64964886]
[1748904367820,18.34648514,156.32,156.29,18.64964886]
[1748904368531,24.85898514,156.33,156.29,18.64964886]
[1748904368731,205.06648514,156.34,156.29,36.996134]
[1748904369645,164.74648514,156.34,156.3,22.39283428]
[1748904372552,146.4,156.34,156.31,18.64964886]
[1748904372925,4.58737812,156.38,156.35,22.38567315]
[1748904373248,146.4,156.39,156.35,40.73215829]
[1748904373249,164.74648514,156.39,156.35,40.73215829]
[1748904373411,18.34648514,156.38,156.35,22.38567315]
[1748904374519,18.34648514,156.36,156.35,6.39590661]
[1748904375043,18.34648514,156.36,156.33,25.04637373]
[1748904375334,18.34648514,156.35,156.33,25.04637373]
[1748904378343,18.34648514,156.35,156.33,6.39672487]
[1748904378549,18.34648514,156.35,156.3,6.39795265]
[1748904378550,44.34648514,156.34,156.3,6.39795265]
[1748904378846,18.34648514,156.31,156.25,17.22]
[1748904379021,18.34648514,156.28,156.26,15.99803691]
[1748904379230,18.34648514,156.28,156.26,18.64964886]
[1748904379446,18.34648514,156.27,156.25,17.22]
[1748904379645,18.34648514,156.28,156.25,33.22]
[1748904380427,18.34648514,156.29,156.27,6.3991809]
[1748904380633,18.34648514,156.29,156.27,22.39713316]
[1748904383425,18.34648514,156.29,156.27,6.3991809]
[1748904383629,18.34648514,156.28,156.22,6.40122903]
[1748904383936,18.34648514,156.24,156.22,6.40122903]
[1748904384146,18.34648514,156.25,156.22,6.40122903]
[1748904386245,18.34648514,156.25,156.22,22.40430161]
[1748904388245,18.34648514,156.24,156.22,22.40430161]
[1748904389538,18.34648514,156.25,156.22,22.40430161]
[1748904390321,18.34648514,156.25,156.23,18.64964886]
[1748904390523,18.34648514,156.25,156.24,6.40040962]
[1748904390932,18.34648514,156.26,156.24,6.40040962]
[1748904391534,146.4,156.27,156.25,18.64964886]
[1748904391739,18.34648514,156.26,156.24,22.40143368]
[1748904392651,18.34648514,156.25,156.24,6.40040962]
[1748904394635,18.34648514,156.26,156.24,6.40040962]
[1748904395459,146.4,156.27,156.24,22.40143368]
[1748904395751,164.74648514,156.27,156.24,22.40143368]
[1748904396450,18.34648514,156.26,156.24,22.40143368]
[1748904398653,18.34648514,156.25,156.24,6.40040962]
[1748904401655,18.34648514,156.25,156.22,22.40430161]
[1748904407655,146.4,156.27,156.22,6.40122903]
[1748904407656,18.34648514,156.23,156.22,6.40122903]
[1748904410458,18.34648514,156.23,156.19,22.40759485]
[1748904410656,18.34648514,156.21,156.19,22.40759485]
[1748904410857,40.26,156.25,156.19,22.40759485]
[1748904411052,18.34648514,156.23,156.19,22.40759485]
[1748904411841,18.34648514,156.22,156.19,22.40759485]
[1748904412044,18.34648514,156.21,156.19,22.40759485]
[1748904412448,40.26,156.25,156.19,6.40245854]
[1748904412449,18.34648514,156.2,156.19,6.40245854]
[1748904420661,18.34648514,156.2,156.18,6.40273477]
[1748904420969,18.34648514,156.19,156.18,6.40273477]
[1748904422467,18.34648514,156.19,156.15,6.40409862]
[1748904422659,18.34648514,156.16,156.15,6.40409862]
[1748904423053,18.34648514,156.17,156.15,6.40409862]
[1748904423370,18.34648514,156.18,156.15,22.41434517]
[1748904425563,18.34648514,156.17,156.15,22.41434517]
[1748904426080,18.34648514,156.17,156.15,6.40409862]
[1748904426263,18.34648514,156.16,156.15,6.40409862]
[1748904426466,18.34648514,156.16,156.12,22.41775804]
[1748904426677,18.34648514,156.13,156.12,22.41775804]
[1748904427181,18.34648514,156.14,156.12,22.41775804]
[1748904432468,18.34648514,156.13,156.12,6.40532923]
[1748904434180,18.34648514,156.13,156.1,6.4061499]
[1748904434379,18.34648514,156.12,156.1,6.4061499]
[1748904437010,18.34648514,156.11,156.1,6.4061499]
[1748904437170,18.34648514,156.11,156.06,18.64964886]
[1748904437171,18.34648514,156.11,156.07,22.42583455]
[1748904437504,18.34648514,156.09,156.07,22.42583455]
[1748904437671,18.34648514,156.08,156.07,6.4073813]
[1748904439179,18.34648514,156.08,156.05,6.40820249]
[1748904439389,18.34648514,156.06,156.05,6.40820249]
[1748904439785,146.4,156.09,156.05,6.40820249]
[1748904439786,18.34648514,156.07,156.05,6.40820249]
[1748904442382,18.34648514,156.06,156.05,6.40820249]
[1748904443898,146.4,156.08,156.05,6.40820249]
[1748904444211,18.34648514,156.07,156.05,6.40820249]
[1748904445776,146.4,156.08,156.05,6.40820249]
[1748904445977,18.34648514,156.07,156.05,6.40820249]
[1748904448603,146.4,156.08,156.06,18.64964886]
[1748904449299,146.4,156.08,156.06,36.996134]
[1748904449506,18.34648514,156.09,156.06,18.64964886]
[1748904449987,18.34648514,156.07,156.05,22.42870873]
[1748904450187,18.34648514,156.06,156.05,22.42870873]
[1748904450372,18.34648514,156.06,156.05,6.40820249]
[1748904450887,18.34648514,156.08,156.05,22.42870873]
[1748904451105,146.4,156.12,156.06,18.64964886]
[1748904451309,40.22,156.11,156.06,36.996134]
[1748904451516,58.56648514,156.11,156.06,36.996134]
[1748904452118,146.4,156.12,156.07,18.48864671]
[1748904452283,146.4,156.12,156.09,18.64964886]
[1748904452484,164.74648514,156.12,156.1,6.4061499]
[1748904453979,146.4,156.12,156.1,6.4061499]
[1748904455502,146.4,156.12,156.11,18.64964886]
[1748904456704,146.4,156.12,156.1,6.4061499]
[1748904465209,164.74648514,156.12,156.1,6.4061499]
[1748904465412,40.2,156.11,156.07,10.78]
[1748904465614,40.2,156.11,156.08,41.0740466]
[1748904465615,58.54648514,156.11,156.08,41.0740466]
[1748904466000,40.2,156.11,156.08,41.0740466]
[1748904466202,58.54648514,156.11,156.08,41.0740466]
[1748904467091,146.4,156.12,156.08,59.42053174]
[1748904467302,186.6,156.12,156.08,59.42053174]
[1748904467519,204.94648514,156.12,156.08,41.0740466]
[1748904467923,18.34648514,156.11,156.08,41.0740466]
[1748904468123,186.6,156.12,156.08,41.0740466]
[1748904468418,204.94648514,156.12,156.08,41.0740466]
[1748904473208,18.34648514,156.11,156.08,41.0740466]
[1748904475726,204.94648514,156.12,156.08,41.0740466]
[1748904476103,146.4,156.12,156.08,59.42053174]
[1748904476309,146.4,156.12,156.1,18.64964886]
[1748904477105,146.4,156.12,156.11,6.40573954]
[1748904482731,146.4,156.12,156.11,25.0553884]
[1748904487937,164.74648514,156.12,156.1,6.4061499]
[1748904488933,164.74648514,156.12,156.08,22.42439774]
[1748904489133,40.16,156.11,156.08,22.42439774]
[1748904491166,40.16,156.11,156.09,18.64964886]
[1748904492025,40.16,156.11,156.1,6.4061499]
[1748904492225,146.4,156.12,156.1,6.4061499]
[1748904493340,18.34648514,156.11,156.1,6.4061499]
[1748904493915,58.50648514,156.11,156.08,6.40697078]
[1748904494147,18.34648514,156.09,156.08,6.40697078]
[1748904494666,58.50648514,156.09,156.08,6.40697078]
[1748904495344,58.50648514,156.09,156.06,6.40779187]
[1748904495530,18.34648514,156.07,156.06,6.40779187]
[1748904496224,58.50648514,156.07,156.05,6.40820249]
[1748904496542,18.34648514,156.06,156.05,6.40820249]
[1748904497132,58.50648514,156.07,156.05,6.40820249]
[1748904497926,18.34648514,156.06,156.05,6.40820249]
[1748904500829,164.74648514,156.06,156.04,6.68120268]
[1748904501045,58.50648514,156.05,156.04,6.68120268]
[1748904502187,40.16,156.05,156.04,6.68120268]
[1748904502540,146.4,156.06,156.05,18.64964886]
[1748904502738,7.7746,156.11,156.05,36.996134]
[1748904502739,146.4,156.1,156.05,36.996134]
[1748904503042,152.6527,156.11,156.07,18.64964886]
[1748904503233,7.9021,156.15,156.09,36.996134]
[1748904503564,18.34648514,156.12,156.09,18.64964886]
[1748904503924,18.34648514,156.11,156.08,18.64964886]
[1748904504234,40.16,156.13,156.09,6.40656031]
[1748904504437,18.34648514,156.12,156.09,6.40656031]
[1748904506060,18.34648514,156.12,156.09,22.4229611]
[1748904506448,40.16,156.13,156.09,22.4229611]
[1748904506449,18.34648514,156.11,156.09,22.4229611]
[1748904506661,18.34648514,156.12,156.09,22.4229611]
[1748904508638,164.74648514,156.12,156.09,22.4229611]
[1748904511745,18.34648514,156.11,156.09,22.4229611]
[1748904511951,164.74648514,156.12,156.09,22.4229611]
[1748904512950,146.4,156.12,156.09,22.4229611]
[1748904513159,164.74648514,156.12,156.09,22.4229611]
[1748904517649,18.34648514,156.11,156.09,22.4229611]
[1748904518049,164.74648514,156.12,156.09,22.4229611]
[1748904518568,164.74648514,156.12,156.09,16.01640079]
[1748904518880,18.34648514,156.1,156.08,6.40697078]
[1748904519179,26.0,156.13,156.08,6.40697078]
[1748904519180,204.88648514,156.09,156.08,6.40697078]
[1748904520574,204.88648514,156.09,156.06,22.42667048]
[1748904520773,18.34648514,156.08,156.06,22.42667048]
[1748904521766,204.88648514,156.09,156.06,22.42667048]
[1748904526283,18.34648514,156.08,156.06,22.42667048]
[1748904526780,186.54,156.09,156.06,22.42667048]
[1748904526988,18.34648514,156.11,156.07,18.64964886]
[1748904527200,58.48648514,156.11,156.07,18.64964886]
[1748904527681,186.54,156.13,156.09,18.34648514]
[1748904528055,164.74648514,156.13,156.09,18.64964886]
[1748904528253,146.4,156.13,156.09,36.996134]
[1748904528515,146.4,156.13,156.09,47.696134]
[1748904528883,146.4,156.13,156.1,22.42152465]
[1748904530206,18.34648514,156.11,156.1,22.42152465]
[1748904530371,18.34648514,156.11,156.1,6.4061499]
[1748904530579,18.34648514,156.11,156.08,6.40697078]
[1748904530777,18.34648514,156.09,156.08,6.40697078]
[1748904530998,18.34648514,156.09,156.07,6.4073813]
[1748904531378,18.34648514,156.1,156.07,22.42583455]
[1748904532409,40.12,156.11,156.08,18.64964886]
[1748904533110,18.34648514,156.12,156.09,22.4229611]
[1748904535413,18.34648514,156.11,156.09,22.4229611]
[1748904538501,40.12,156.12,156.09,22.4229611]
[1748904538708,58.46648514,156.12,156.09,22.4229611]
[1748904539198,40.12,156.12,156.09,22.4229611]
[1748904539389,58.46648514,156.12,156.09,22.4229611]
[1748904540179,146.4,156.13,156.09,22.4229611]
[1748904540382,204.86648514,156.13,156.09,22.4229611]
[1748904541096,146.4,156.13,156.1,18.64964886]
[1748904541298,204.86648514,156.14,156.1,18.64964886]
[1748904541878,164.74648514,156.14,156.1,18.64964886]
[1748904542306,164.74648514,156.14,156.11,22.42008839]
[1748904542681,146.4,156.14,156.11,22.42008839]
[1748904542879,164.74648514,156.14,156.11,22.42008839]
[1748904543894,18.34648514,156.13,156.11,22.42008839]
[1748904544210,18.34648514,156.13,156.1,6.4061499]
[1748904544391,18.34648514,156.12,156.1,6.4061499]
[1748904544798,58.46648514,156.13,156.1,22.42152465]
[1748904545013,40.12,156.13,156.1,22.42152465]
[1748904545794,58.46648514,156.13,156.1,22.42152465]
[1748904547247,58.46648514,156.13,156.1,16.01537475]
[1748904547612,40.12,156.13,156.1,16.01537475]
[1748904549621,40.12,156.13,156.1,22.42152465]
[1748904550199,146.4,156.14,156.13,18.64964886]
[1748904551699,146.4,156.14,156.13,25.05456783]
[1748904552543,146.4,156.14,156.13,43.40105297]
[1748904553324,146.4,156.21,156.13,70.09335041]
[1748904553531,146.4,156.21,156.17,18.34648514]
[1748904553730,146.4,156.21,156.18,22.41003969]
[1748904554093,146.4,156.21,156.18,40.75652483]
[1748904554534,146.4,156.21,156.19,18.34648514]
[1748904555203,146.4,156.21,156.19,29.02648514]
[1748904555616,146.4,156.21,156.2,25.05169751]
[1748904555801,146.4,156.25,156.2,91.41354755]
[1748904556003,146.4,156.25,156.22,18.34648514]
[1748904556207,146.4,156.25,156.22,18.64964886]
[1748904556519,18.34648514,156.24,156.21,18.64964886]
[1748904556693,204.84648514,156.25,156.21,18.64964886]
[1748904556895,186.5,156.25,156.21,18.64964886]
[1748904557424,204.84648514,156.25,156.21,18.64964886]
[1748904557894,204.84648514,156.25,156.22,6.40122903]
[1748904560097,18.34648514,156.23,156.22,6.40122903]
[1748904560303,18.34648514,156.24,156.22,6.40122903]
[1748904560525,204.84648514,156.25,156.22,6.40122903]
[1748904560713,146.4,156.25,156.22,6.40122903]
[1748904561026,146.4,156.25,156.22,22.40430161]
[1748904561714,146.4,156.25,156.22,40.75078675]
[1748904561921,146.4,156.25,156.22,22.40430161]
[1748904562108,146.4,156.25,156.22,40.75078675]
[1748904562717,146.4,156.25,156.22,22.40430161]
[1748904562907,164.74648514,156.25,156.22,22.40430161]
[1748904563310,18.34648514,156.23,156.22,6.40122903]
[1748904564224,40.08,156.24,156.22,6.40122903]
[1748904564401,58.42648514,156.24,156.22,6.40122903]
[1748904565421,18.34648514,156.24,156.22,6.40122903]
[1748904567099,204.82648514,156.25,156.22,6.40122903]
[1748904567316,204.82648514,156.25,156.22,22.40430161]
[1748904567900,146.4,156.25,156.22,22.40430161]
[1748904568111,146.4,156.25,156.23,36.996134]
[1748904569105,146.4,156.25,156.24,6.40040962]
[1748904570308,18.34648514,156.28,156.25,18.64964886]
[1748904570508,146.4,156.29,156.25,18.64964886]
[1748904570714,59.99598514,156.3,156.25,18.64964886]
[1748904570715,166.33598514,156.3,156.25,18.64964886]
[1748904570920,206.39598514,156.3,156.25,18.64964886]
[1748904571120,18.34648514,156.29,156.25,18.64964886]
[1748904571319,18.34648514,156.29,156.26,22.39856648]
[1748904571846,164.74648514,156.3,156.26,22.39856648]
[1748904572706,18.34648514,156.29,156.26,22.39856648]
[1748904572909,18.34648514,156.28,156.26,6.39959042]
[1748904573422,18.34648514,156.29,156.26,6.39959042]
[1748904575037,146.4,156.3,156.27,18.64964886]
[1748904575906,146.4,156.3,156.26,40.74505162]
[1748904575907,18.34648514,156.29,156.28,6.39877143]
[1748904576513,186.46,156.3,156.28,6.39877143]
[1748904576514,204.80648514,156.3,156.28,6.39877143]
[1748904577264,186.46,156.3,156.28,6.39877143]
[1748904577530,146.4,156.3,156.28,6.39877143]
[1748904578235,164.74648514,156.3,156.27,22.39713316]
[1748904578431,146.4,156.3,156.27,22.39713316]
[1748904578626,164.74648514,156.3,156.27,22.39713316]
[1748904579108,146.4,156.3,156.27,22.39713316]
[1748904579429,164.74648514,156.3,156.27,22.39713316]
[1748904580443,164.74648514,156.3,156.27,15.99795226]
[1748904581019,146.4,156.3,156.27,15.99795226]
[1748904581433,18.34648514,156.31,156.27,15.99795226]
[1748904582344,18.34648514,156.31,156.28,18.64964886]
[1748904583433,18.34648514,156.31,156.29,6.39836201]
[1748904585330,18.34648514,156.31,156.28,22.39570001]
[1748904585549,152.9231,156.33,156.29,18.64964886]
[1748904585723,20.2890393,156.41,156.31,18.34648514]
[1748904585724,8.1602,156.38,156.31,18.34648514]
[1748904585927,18.34648514,156.36,156.31,18.34648514]
[1748904586131,40.04,156.37,156.31,18.34648514]
[1748904586132,18.34648514,156.35,156.31,29.30964886]
[1748904586747,18.34648514,156.34,156.31,29.30964886]
[1748904587123,18.34648514,156.34,156.32,6.39713408]
[1748904588331,18.34648514,156.35,156.32,22.38996928]
[1748904590248,18.34648514,156.34,156.32,22.38996928]
[1748904590841,18.34648514,156.34,156.32,6.39713408]
[1748904591725,146.4,156.37,156.32,6.39713408]
[1748904591726,146.4,156.37,156.32,22.38996928]
[1748904591929,18.34648514,156.34,156.32,6.39713408]
[1748904592448,146.4,156.37,156.32,6.39713408]
[1748904592655,18.34648514,156.35,156.32,6.39713408]
[1748904593727,18.34648514,156.34,156.32,6.39713408]
[1748904593927,146.4,156.37,156.32,6.39713408]
[1748904594147,18.34648514,156.34,156.32,6.39713408]
[1748904594549,18.34648514,156.35,156.32,6.39713408]
[1748904595522,18.34648514,156.34,156.32,6.39713408]
[1748904597267,18.34648514,156.33,156.32,6.39713408]
[1748904599030,40.02,156.35,156.32,6.39713408]
[1748904599230,18.34648514,156.33,156.32,6.39713408]
[1748904599531,18.34648514,156.34,156.32,6.39713408]
[1748904600960,146.4,156.36,156.32,6.39713408]
[1748904600961,146.4,156.36,156.33,18.64964886]
[1748904601864,146.4,156.36,156.34,6.39631572]
[1748904602041,164.74648514,156.36,156.34,6.39631572]
[1748904602242,18.34648514,156.35,156.31,10.66]
[1748904602545,146.4,156.36,156.31,10.66]
[1748904602546,18.34648514,156.34,156.31,10.66]
[1748904603051,18.34648514,156.34,156.32,6.39713408]
[1748904604858,18.34648514,156.33,156.31,17.05741782]
[1748904605076,18.34648514,156.33,156.27,17.59333231]
[1748904605077,18.34648514,156.32,156.27,26.65693231]
[1748904605361,1.5421,156.32,156.28,6.39877143]
[1748904605568,18.34648514,156.3,156.28,6.39877143]
[1748904605770,18.34648514,156.3,156.26,22.39851428]
[1748904606632,18.34648514,156.29,156.26,22.39851428]
[1748904606833,18.34648514,156.28,156.26,6.39959042]
[1748904607343,18.34648514,156.27,156.24,6.40003914]
[1748904607573,18.34648514,156.25,156.23,17.06072064]
[1748904607865,18.34648514,156.24,156.23,17.06072064]
[1748904608160,18.34648514,156.24,156.23,6.40072064]
[1748904608545,6.0637,156.26,156.23,6.40072064]
[1748904608868,18.34648514,156.25,156.23,6.40072064]
[1748904609043,18.34648514,156.24,156.23,6.40072064]
[1748904609668,18.34648514,156.24,156.22,6.40117773]
[1748904609853,18.34648514,156.23,156.22,6.40117773]
[1748904611560,18.34648514,156.24,156.22,6.40117773]
[1748904612362,6.0637,156.26,156.22,6.40117773]
[1748904612363,18.34648514,156.23,156.22,6.40117773]
[1748904612748,6.0637,156.26,156.22,6.40117773]
[1748904612957,18.34648514,156.24,156.22,6.40117773]
[1748904613648,6.0637,156.26,156.22,22.40425031]
[1748904613869,18.34648514,156.24,156.22,22.40425031]
[1748904614263,146.4,156.28,156.23,18.64964886]
[1748904614573,26.0,156.29,156.26,18.34648514]
[1748904614574,146.4,156.29,156.26,18.34648514]
[1748904614795,164.74648514,156.31,156.27,18.64964886]
[1748904615870,164.74648514,156.31,156.28,22.39570001]
[1748904616072,146.4,156.31,156.28,22.39570001]
[1748904616393,18.34648514,156.33,156.29,18.64964886]
[1748904616554,146.4,156.35,156.29,18.64964886]
[1748904616555,146.4,156.35,156.29,36.996134]
[1748904616872,18.34648514,156.34,156.29,36.996134]
[1748904617299,146.4,156.35,156.29,36.996134]
[1748904617490,18.34648514,156.34,156.29,36.996134]
[1748904617653,18.34648514,156.33,156.3,6.39795265]
[1748904619184,18.34648514,156.31,156.3,6.39795265]
[1748904619810,18.34648514,156.31,156.28,15.99692858]
[1748904620009,18.34648514,156.29,156.28,15.99692858]
[1748904620908,40.02,156.33,156.28,15.99692858]
[1748904620909,18.34648514,156.3,156.28,15.99692858]
[1748904621202,18.34648514,156.29,156.27,6.3991809]
[1748904622087,18.34648514,156.29,156.26,41.04821534]
[1748904622888,18.34648514,156.3,156.26,41.04821534]
[1748904623995,18.34648514,156.28,156.26,22.39856648]
[1748904624585,146.4,156.29,156.26,6.39959042]
[1748904624586,18.34648514,156.27,156.26,6.39959042]
[1748904625805,18.34648514,156.27,156.23,22.401994]
[1748904626015,18.34648514,156.26,156.23,22.401994]
[1748904626408,18.34648514,156.25,156.23,22.401994]
[1748904626715,18.34648514,156.26,156.23,22.401994]
[1748904626890,18.34648514,156.27,156.23,22.401994]
[1748904628296,18.34648514,156.26,156.23,22.401994]
[1748904629615,18.34648514,156.25,156.23,22.401994]
[1748904629919,146.4,156.28,156.23,22.401994]
[1748904630099,18.34648514,156.25,156.23,22.401994]
[1748904631518,18.34648514,156.24,156.23,22.401994]
[1748904632329,18.34648514,156.24,156.23,16.0011747]
[1748904633214,18.34648514,156.25,156.23,16.0011747]
[1748904634311,18.34648514,156.24,156.23,16.0011747]
[1748904634720,18.34648514,156.24,156.22,6.40122903]
[1748904635032,18.34648514,156.23,156.22,6.40122903]
[1748904635416,40.0,156.26,156.22,6.40122903]
[1748904635729,18.34648514,156.23,156.22,6.40122903]
[1748904638310,18.34648514,156.24,156.22,6.40122903]
[1748904640749,164.74648514,156.27,156.23,18.64964886]
[1748904640948,146.4,156.27,156.23,36.996134]
[1748904641126,18.34648514,156.28,156.23,36.996134]
[1748904641328,32.5961,156.31,156.23,36.996134]
[1748904641535,18.34648514,156.29,156.25,18.64964886]
[1748904642045,32.5961,156.31,156.26,22.39856648]
[1748904642220,18.34648514,156.28,156.26,22.39856648]
[1748904642751,18.34648514,156.27,156.26,22.39856648]
[1748904643945,18.34648514,156.28,156.26,22.39856648]
[1748904647444,40.0,156.3,156.26,22.39856648]
[1748904647626,18.34648514,156.28,156.26,22.39856648]
[1748904648132,18.34648514,156.27,156.26,22.39856648]
[1748904651428,18.34648514,156.28,156.26,22.39856648]
[1748904652150,146.4,156.29,156.26,22.39856648]
[1748904652341,18.34648514,156.28,156.26,22.39856648]
[1748904653046,146.4,156.29,156.26,22.39856648]
[1748904653247,18.34648514,156.28,156.26,22.39856648]
[1748904655541,146.4,156.29,156.26,40.74505162]
[1748904655745,146.4,156.29,156.27,18.64964886]
[1748904655945,146.4,156.29,156.27,36.996134]
[1748904656145,146.4,156.29,156.28,36.996134]
[1748904656350,146.4,156.29,156.28,18.64964886]
[1748904657248,18.34648514,156.32,156.28,18.64964886]
[1748904657471,22.01582761,156.32,156.28,18.64964886]
[1748904658558,18.34648514,156.31,156.29,6.39836201]
[1748904658759,18.34648514,156.3,156.29,6.39836201]
[1748904659749,18.34648514,156.3,156.28,6.39861577]
[1748904659960,164.74648514,156.29,156.28,6.39861577]
[1748904660446,164.74648514,156.29,156.27,6.39911927]
[1748904660647,164.74648514,156.29,156.23,10.64]
[1748904660648,18.34648514,156.28,156.24,6.40040962]
[1748904660982,18.34648514,156.25,156.24,6.40040962]
[1748904663266,18.34648514,156.25,156.22,22.40345363]
[1748904663452,18.34648514,156.24,156.22,22.40345363]
[1748904663664,18.34648514,156.23,156.22,6.40122903]
[1748904664267,18.34648514,156.23,156.21,8.92910257]
[1748904664497,18.34648514,156.22,156.21,8.92910257]
[1748904665370,46.2225,156.24,156.21,8.92910257]
[1748904665563,18.34648514,156.22,156.21,24.93319961]
[1748904666184,18.34648514,156.22,156.21,8.92910257]
[1748904666769,46.2225,156.24,156.21,8.92910257]
[1748904667162,18.34648514,156.22,156.21,8.92910257]
[1748904667854,18.34648514,156.22,156.21,24.93319961]
[1748904670961,18.34648514,156.22,156.21,8.92910257]
[1748904673405,18.34648514,156.22,156.21,2.52755968]
[1748904673694,19.98918514,156.22,156.19,6.4022902]
[1748904673882,18.34648514,156.2,156.15,10.62]
[1748904674083,18.34648514,156.16,156.15,6.40409862]
[1748904675293,18.34648514,156.17,156.15,22.41434517]
[1748904675883,40.0,156.18,156.15,22.41434517]
[1748904676087,164.74648514,156.19,156.15,22.41434517]
[1748904677493,18.34648514,156.17,156.15,22.41434517]
[1748904677793,18.34648514,156.16,156.15,22.41434517]
[1748904678399,18.34648514,156.17,156.15,22.41434517]
[1748904679171,18.34648514,156.17,156.14,18.64964886]
[1748904680675,40.0,156.18,156.14,18.64964886]
[1748904680875,40.0,156.18,156.14,36.996134]
[1748904681108,146.4,156.19,156.16,18.64964886]
[1748904681301,146.4,156.19,156.17,6.40327847]
[1748904681600,146.4,156.23,156.18,18.64964886]
[1748904681798,146.4,156.23,156.18,36.996134]
[1748904682003,164.74648514,156.23,156.18,36.996134]
[1748904683177,18.34648514,156.22,156.19,22.4086049]
[1748904691798,18.34648514,156.2,156.19,6.40245854]
[1748904691993,18.34648514,156.2,156.18,6.40286848]
[1748904692208,18.34648514,156.19,156.18,6.40286848]
[1748904693098,146.4,156.18,156.15,6.40409862]
[1748904693320,18.34648514,156.16,156.15,6.40409862]
[1748904694538,18.34648514,156.16,156.14,22.41535946]
[1748904694832,146.4,156.18,156.14,40.7618446]
[1748904695125,164.74648514,156.18,156.14,22.41535946]
[1748904696120,18.34648514,156.17,156.14,22.41535946]
[1748904697319,164.74648514,156.18,156.14,22.41535946]
[1748904698714,146.4,156.18,156.15,18.64964886]
[1748904698910,146.4,156.18,156.15,36.996134]
[1748904699126,146.4,156.18,156.15,18.64964886]